bitfinex/quotes_BTCUSD_20220212
["timestamp","ask_amount","ask_price","bid_price","bid_amount"]
[1644689228287,0.002,42890.0,42887.0,0.17484]
[1644689228288,0.000598,42888.0,42887.0,0.502752]
[1644689228788,0.000598,42888.0,42887.0,0.552752]
[1644689229290,0.000598,42888.0,42887.0,0.283135]
[1644689229490,0.000598,42888.0,42887.0,0.233135]
[1644689229688,0.20686315,42890.0,42888.0,0.327912]
[1644689229888,0.20635788,42890.0,42886.0,0.11659]
[1644689230187,0.20686435,42890.0,42886.0,0.11659]
[1644689230393,0.20686435,42890.0,42884.0,0.05828]
[1644689230589,0.06873132,42887.0,42886.0,0.327912]
[1644689230789,0.06873132,42887.0,42884.0,0.05828]
[1644689231039,0.20686435,42890.0,42886.0,0.327912]
[1644689231040,0.20635788,42890.0,42886.0,0.327912]
[1644689231441,0.00050647,42889.0,42886.0,0.327912]
[1644689232342,0.28481587,42890.0,42886.0,0.327912]
[1644689232541,0.28532234,42890.0,42886.0,0.327912]
[1644689232741,0.33532234,42890.0,42883.0,0.327279]
[1644689232942,0.33532234,42890.0,42881.0,0.116608]
[1644689233142,0.28532234,42890.0,42882.0,0.327279]
[1644689233442,0.28481587,42890.0,42883.0,0.058303]
[1644689233641,0.28481587,42890.0,42884.0,0.327279]
[1644689234443,0.28481587,42890.0,42883.0,0.058303]
[1644689234444,0.05,42889.0,42883.0,0.058303]
[1644689234644,0.05,42889.0,42882.0,0.058307]
[1644689234890,0.00019053,42889.0,42882.0,0.058307]
[1644689235091,0.00019053,42889.0,42883.0,0.385582]
[1644689235389,0.00019053,42889.0,42885.0,0.327279]
[1644689235788,0.00019053,42889.0,42885.0,0.427279]
[1644689235990,0.002,42890.0,42886.0,0.3523]
[1644689236193,0.00019053,42889.0,42888.0,0.058287]
[1644689236389,0.00019053,42889.0,42888.0,0.437866]
[1644689236593,0.00019053,42889.0,42888.0,0.51748474]
[1644689236794,0.00019053,42889.0,42888.0,0.61748474]
[1644689237193,0.002,42890.0,42889.0,0.327279]
[1644689237390,0.002,42890.0,42889.0,0.379579]
[1644689238552,0.002,42890.0,42889.0,0.59201606]
[1644689238755,0.002,42890.0,42889.0,0.74201606]
[1644689239255,0.002,42890.0,42889.0,0.71478862]
[1644689239655,0.002,42890.0,42889.0,0.96850948]
[1644689239854,0.002,42890.0,42889.0,0.479579]
[1644689240054,0.002,42890.0,42889.0,0.529579]
[1644689240253,0.002,42890.0,42889.0,1.01794372]
[1644689240455,0.002,42890.0,42889.0,0.74031661]
[1644689240657,0.002,42890.0,42889.0,0.92552623]
[1644689240955,0.002,42890.0,42889.0,1.23101403]
[1644689241359,0.002,42890.0,42889.0,1.88481403]
[1644689241657,0.002,42890.0,42889.0,3.33407903]
[1644689241858,0.002,42890.0,42889.0,3.48060557]
[1644689242060,0.002,42890.0,42889.0,4.1132422]
[1644689242308,0.002,42890.0,42889.0,5.1032422]
[1644689242508,0.002,42890.0,42889.0,5.1614932]
[1644689242699,0.002,42890.0,42889.0,5.5682772]
[1644689243300,0.002,42890.0,42889.0,5.28503079]
[1644689243501,0.002,42890.0,42889.0,5.09982117]
[1644689243700,0.002,42890.0,42889.0,5.59982117]
[1644689243899,0.002,42890.0,42889.0,5.69982117]
[1644689244100,0.002,42890.0,42889.0,5.88492793]
[1644689244501,0.002,42890.0,42889.0,5.87900139]
[1644689244901,0.002,42890.0,42889.0,6.28492793]
[1644689245102,0.002,42890.0,42889.0,6.30796023]
[1644689245302,0.002,42890.0,42889.0,5.90203369]
[1644689245904,0.002,42890.0,42889.0,6.30203369]
[1644689246144,0.002,42890.0,42889.0,5.97702144]
[1644689246343,0.002,42890.0,42889.0,5.90796023]
[1644689246542,0.002,42890.0,42889.0,6.30796023]
[1644689246744,0.002,42890.0,42889.0,5.90796023]
[1644689246945,0.002,42890.0,42889.0,5.36223949]
[1644689247145,0.002,42890.0,42889.0,3.95609706]
[1644689247347,0.002,42890.0,42889.0,3.7709903]
[1644689247546,0.002,42890.0,42889.0,3.75338592]
[1644689247846,0.002,42890.0,42889.0,4.92849828]
[1644689248445,0.002,42890.0,42889.0,4.47849828]
[1644689248646,0.002,42890.0,42889.0,5.10453589]
[1644689249045,0.002,42890.0,42889.0,4.11453589]
[1644689249446,0.002,42890.0,42889.0,5.75453589]
[1644689249646,0.002,42890.0,42889.0,5.60453589]
[1644689249901,0.002,42890.0,42889.0,4.61453589]
[1644689250504,0.002,42890.0,42889.0,4.81453589]
[1644689250700,0.002,42890.0,42889.0,4.65860935]
[1644689250901,0.002,42890.0,42889.0,4.60860935]
[1644689251300,0.002,42890.0,42889.0,4.58530935]
[1644689251701,0.002,42890.0,42889.0,4.73530935]
[1644689251903,0.002,42890.0,42889.0,5.80530935]
[1644689252100,0.002,42890.0,42889.0,4.66530935]
[1644689252503,0.002,42890.0,42889.0,4.16530935]
[1644689252901,0.002,42890.0,42889.0,4.38860935]
[1644689253202,0.002,42890.0,42889.0,4.60177454]
[1644689253402,0.002,42890.0,42889.0,5.10177454]
[1644689253647,0.002,42890.0,42889.0,5.00177454]
[1644689253946,0.002,42890.0,42889.0,4.64800935]
[1644689254147,0.002,42890.0,42889.0,4.17797889]
[1644689254546,0.002,42890.0,42889.0,4.07797889]
[1644689255848,0.002,42890.0,42889.0,1.90070266]
[1644689256048,0.002,42890.0,42889.0,1.34840266]
[1644689256549,0.002,42890.0,42889.0,0.84840266]
[1644689256748,0.002,42890.0,42889.0,0.97121385]
[1644689256949,0.002,42890.0,42889.0,1.96561177]
[1644689257149,0.002,42890.0,42889.0,1.62501385]
[1644689257396,0.002,42890.0,42889.0,2.22269908]
[1644689257598,0.002,42890.0,42889.0,3.46369908]
[1644689257897,0.002,42890.0,42889.0,4.77526204]
[1644689258296,0.002,42890.0,42889.0,4.79856204]
[1644689258898,0.00453173,42892.0,42889.0,4.79856204]
[1644689258899,0.00053173,42892.0,42891.0,1.648279]
[1644689259098,0.00053173,42892.0,42891.0,2.854379]
[1644689259398,0.00212658,42898.0,42896.0,0.08]
[1644689259399,0.00204688,42898.0,42896.0,0.08]
[1644689259603,0.00180611,42907.0,42899.0,0.08]
[1644689259798,0.00180611,42907.0,42906.0,0.7338]
[1644689260097,0.00180611,42907.0,42906.0,0.78370889]
[1644689260302,0.00180611,42907.0,42906.0,0.88370889]
[1644689262450,0.00180611,42907.0,42906.0,0.90674119]
[1644689262651,0.0069583,42909.0,42908.0,0.08]
[1644689262950,0.0069583,42909.0,42908.0,1.22163]
[1644689262951,0.00680611,42909.0,42908.0,1.22163]
[1644689263153,0.00230831,42909.0,42908.0,1.22163]
[1644689263351,0.00230831,42909.0,42908.0,1.32163]
[1644689263552,0.00230831,42909.0,42908.0,0.61553]
[1644689263950,0.00180611,42909.0,42908.0,0.61553]
[1644689264153,0.00180611,42909.0,42908.0,0.66553]
[1644689264552,0.00180611,42909.0,42908.0,0.71213]
[1644689265396,0.00180611,42909.0,42908.0,1.02146731]
[1644689265596,0.00180611,42909.0,42908.0,0.7351623]
[1644689265800,0.00336641,42910.0,42909.0,0.807279]
[1644689266003,0.002,42912.0,42911.0,0.08]
[1644689266197,0.002,42912.0,42911.0,0.78947163]
[1644689266398,0.002,42912.0,42911.0,1.844879]
[1644689266697,0.00273725,42915.0,42911.0,2.02995073]
[1644689266897,0.00073725,42915.0,42913.0,0.327279]
[1644689267097,0.00073725,42915.0,42914.0,0.512119]
[1644689267297,0.00073725,42915.0,42914.0,0.662119]
[1644689267697,0.00073725,42915.0,42914.0,0.99284238]
[1644689267997,0.00608548,42916.0,42915.0,1.648279]
[1644689268197,0.001,42918.0,42915.0,1.694879]
[1644689268399,0.003,42919.0,42915.0,1.97995073]
[1644689268644,0.00072494,42921.0,42915.0,0.76198303]
[1644689268943,0.00072494,42921.0,42915.0,0.5769113]
[1644689269143,0.00072494,42921.0,42915.0,0.6551413]
[1644689269346,0.001,42927.0,42920.0,0.5828]
[1644689269548,0.01381856,42929.0,42922.0,0.407279]
[1644689269747,0.01381856,42929.0,42927.0,2.281079]
[1644689269944,0.001,42932.0,42929.0,0.08]
[1644689270148,0.02002413,42944.0,42932.0,0.407279]
[1644689270349,0.0506387,42939.0,42934.0,0.08]
[1644689270556,0.001,42952.0,42933.0,0.0466]
[1644689270557,0.09292153,42973.0,42936.0,0.08]
[1644689270750,0.011766,42970.0,42938.0,0.08]
[1644689270952,1.28371655,42969.0,42939.0,0.0466]
[1644689271150,0.011766,42970.0,42939.0,0.0466]
[1644689271151,1.241,42966.0,42940.0,0.41072338]
[1644689271347,1.241,42966.0,42960.0,0.08]
[1644689271348,0.06719737,42966.0,42960.0,0.08]
[1644689271556,0.06719737,42966.0,42936.0,0.116423]
[1644689271561,0.04272098,42947.0,42942.0,0.33072338]
[1644689271746,0.04272098,42947.0,42943.0,0.0466]
[1644689271747,0.02272098,42947.0,42943.0,0.0466]
[1644689271945,0.02272098,42947.0,42941.0,0.0230323]
[1644689271947,0.02272098,42947.0,42944.0,0.0466]
[1644689272301,0.02272098,42947.0,42945.0,0.326839]
[1644689272302,0.02222098,42947.0,42945.0,0.326839]
[1644689272497,0.02222098,42947.0,42946.0,0.0466]
[1644689272695,0.02222098,42947.0,42946.0,0.163017]
[1644689272896,0.34905198,42947.0,42946.0,0.0466]
[1644689273100,0.02172098,42947.0,42946.0,0.0466]
[1644689273295,0.02172098,42947.0,42946.0,0.373431]
[1644689273696,0.01672098,42947.0,42946.0,0.373431]
[1644689273896,0.01672098,42947.0,42946.0,0.0416]
[1644689274097,0.01672098,42947.0,42946.0,0.368431]
[1644689274899,0.08527701,42947.0,42946.0,0.3914633]
[1644689275502,0.08527701,42947.0,42946.0,0.0646323]
[1644689275700,0.08527701,42947.0,42946.0,0.3498633]
[1644689276347,0.01172098,42947.0,42946.0,0.3498633]
[1644689276549,0.01172098,42947.0,42946.0,0.4080783]
[1644689277350,0.01172098,42947.0,42946.0,0.0812473]
[1644689277551,0.08066477,42947.0,42946.0,0.0812473]
[1644689278350,0.08066477,42947.0,42946.0,0.0230323]
[1644689278854,0.08066477,42947.0,42942.0,0.05822]
[1644689279799,0.21499519,42943.0,42940.0,0.0230323]
[1644689280194,0.08122259,42947.0,42940.0,0.0230323]
[1644689280794,0.326839,42946.0,42940.0,0.0230323]
[1644689281696,0.26558075,42945.0,42941.0,0.326839]
[1644689282697,0.26613901,42945.0,42941.0,0.326839]
[1644689283297,0.26613901,42945.0,42942.0,0.326839]
[1644689283544,0.26613901,42945.0,42936.0,0.326839]
[1644689283545,0.26558075,42945.0,42936.0,0.326839]
[1644689283744,0.2657647,42945.0,42936.0,0.326839]
[1644689283946,0.2657647,42945.0,42935.0,0.116448]
[1644689283947,0.00018395,42945.0,42942.0,0.326839]
[1644689284144,0.00018395,42945.0,42943.0,0.326851]
[1644689284346,0.00018395,42945.0,42941.0,0.1]
[1644689284544,0.326851,42944.0,42941.0,0.1]
[1644689284944,0.95,42943.0,42929.0,0.116465]
[1644689285148,0.95,42943.0,42923.0,0.1850046]
[1644689285149,0.95,42941.0,42923.0,0.1850046]
[1644689285347,0.64167038,42940.0,42923.0,0.1850046]
[1644689285544,0.64167038,42940.0,42921.0,0.01]
[1644689285545,0.054721,42930.0,42921.0,0.01]
[1644689285747,0.326885,42928.0,42921.0,0.01]
[1644689285946,0.0466,42929.0,42921.0,0.01]
[1644689286145,0.55,42924.0,42922.0,0.326885]
[1644689286345,0.55,42924.0,42923.0,0.326885]
[1644689286548,0.06894628,42929.0,42920.0,0.0693261]
[1644689286746,0.06894628,42929.0,42921.0,0.058246]
[1644689286948,0.31478538,42928.0,42921.0,0.048246]
[1644689287147,0.31478538,42928.0,42918.0,0.01]
[1644689287148,0.326885,42927.0,42918.0,0.01]
[1644689287397,0.0466,42926.0,42918.0,0.01]
[1644689287597,0.326885,42921.0,42918.0,0.01]
[1644689287795,0.39562761,42921.0,42912.0,0.05]
[1644689287994,0.06874261,42921.0,42912.0,0.05]
[1644689288194,0.06874261,42921.0,42915.0,0.058255]
[1644689288395,0.326885,42920.0,42915.0,0.058255]
[1644689288594,0.06874261,42921.0,42915.0,0.058255]
[1644689289398,0.06874261,42921.0,42911.0,0.06826]
[1644689289399,0.07055275,42914.0,42911.0,0.06826]
[1644689289797,0.326885,42913.0,42911.0,0.06826]
[1644689289997,0.28768319,42913.0,42911.0,0.06826]
[1644689290196,0.07055275,42914.0,42911.0,0.06826]
[1644689290797,0.07055275,42914.0,42912.0,0.326885]
[1644689291040,0.0678155,42914.0,42911.0,0.06826]
[1644689291241,0.0678155,42914.0,42912.0,0.326885]
[1644689291442,0.0678155,42914.0,42911.0,0.01]
[1644689291644,0.0678155,42914.0,42912.0,0.326885]
[1644689291844,0.35514559,42914.0,42912.0,0.426885]
[1644689292042,0.0678155,42914.0,42912.0,0.1]
[1644689292241,0.26477887,42915.0,42913.0,0.326885]
[1644689292443,0.39140731,42922.0,42912.0,0.1]
[1644689293246,0.08549691,42919.0,42912.0,0.1]
[1644689293443,0.29346621,42918.0,42912.0,0.1]
[1644689293942,0.08549691,42919.0,42912.0,0.1]
[1644689294344,0.14376791,42919.0,42912.0,0.1]
[1644689294801,0.14376791,42919.0,42913.0,0.00055633]
[1644689294802,0.08549691,42919.0,42913.0,0.00055633]
[1644689295799,0.08549691,42919.0,42912.0,0.2]
[1644689296198,0.08549691,42919.0,42913.0,0.326885]
[1644689296399,0.08549691,42919.0,42912.0,0.2]
[1644689296901,0.08549691,42919.0,42912.0,0.1]
[1644689297698,0.42377779,42923.0,42912.0,0.1]
[1644689298099,0.41877779,42923.0,42912.0,0.1]
[1644689298547,0.41877779,42923.0,42912.0,0.2]
[1644689298949,0.07233655,42917.0,42912.0,0.2]
[1644689299551,0.07233655,42917.0,42915.0,0.00055686]
[1644689299747,0.06733655,42917.0,42915.0,0.00055686]
[1644689300150,0.08589327,42918.0,42915.0,0.00055686]
[1644689300450,0.38611434,42923.0,42912.0,0.3]
[1644689300648,0.38611434,42923.0,42914.0,0.00054722]
[1644689301050,0.00054704,42928.0,42914.0,0.05880422]
[1644689301253,0.00054704,42928.0,42923.0,0.25]
[1644689301454,0.00054704,42928.0,42924.0,0.08141238]
[1644689301852,0.7986,42937.0,42923.0,0.25]
[1644689302055,0.22334357,42926.0,42919.0,0.0005472]
[1644689302332,0.326885,42925.0,42919.0,0.0587972]
[1644689302722,0.22334357,42926.0,42919.0,0.0005472]
[1644689302723,0.326885,42924.0,42919.0,0.0005472]
[1644689303022,0.054721,42920.0,42915.0,0.116499]
[1644689303324,0.054721,42920.0,42919.0,0.00054718]
[1644689304124,0.07953268,42921.0,42915.0,0.116499]
[1644689304325,0.07953268,42921.0,42917.0,0.00055684]
[1644689304525,0.07453268,42921.0,42917.0,0.00055684]
[1644689304728,0.326885,42920.0,42917.0,0.00055684]
[1644689305325,0.326885,42920.0,42915.0,0.116499]
[1644689305525,0.326885,42920.0,42916.0,0.00055685]
[1644689306546,0.326885,42920.0,42915.0,0.116499]
[1644689306746,0.06953268,42921.0,42916.0,0.00055686]
[1644689306947,0.326995,42920.0,42916.0,0.00055686]
[1644689307747,0.326995,42920.0,42915.0,0.116499]
[1644689307948,0.326995,42920.0,42916.0,0.0005361]
[1644689308147,0.08957926,42920.0,42915.0,0.1120351]
[1644689308748,0.08684201,42920.0,42915.0,0.1120351]
[1644689308948,0.326995,42919.0,42915.0,0.1120351]
[1644689310299,0.052595,42919.0,42915.0,0.1120351]
[1644689310499,0.052595,42919.0,42918.0,0.25]
[1644689311099,0.31222622,42919.0,42918.0,0.25]
[1644689311502,0.30596174,42922.0,42918.0,0.25]
[1644689311701,0.326995,42922.0,42918.0,0.25]
[1644689311902,0.326995,42922.0,42921.0,0.3]
[1644689312502,0.326995,42922.0,42918.0,0.25]
[1644689312701,0.326995,42922.0,42920.0,0.05]
[1644689312901,0.29100208,42922.0,42918.0,0.25]
[1644689313101,0.61799708,42922.0,42921.0,0.3]
[1644689313403,0.26886868,42923.0,42918.0,0.25]
[1644689313647,0.33897357,42922.0,42918.0,0.25]
[1644689313847,0.1349,42929.0,42923.0,0.326995]
[1644689314047,1.1088,42938.0,42923.0,0.3268864]
[1644689314048,0.00018435,42924.0,42923.0,0.3268864]
[1644689314446,0.00018435,42924.0,42923.0,0.9268864]
[1644689314847,0.00018435,42924.0,42923.0,1.14795137]
[1644689315050,0.00073728,42930.0,42923.0,1.14795137]
[1644689315051,0.3749,42938.0,42923.0,1.65661667]
[1644689315247,0.00018435,42926.0,42925.0,0.676961]
[1644689315446,0.00018435,42926.0,42925.0,1.323561]
[1644689315646,0.00073728,42932.0,42927.0,0.326961]
[1644689315848,0.00073728,42932.0,42929.0,0.326961]
[1644689316048,0.00073728,42932.0,42931.0,0.985188]
[1644689316248,0.01172098,42947.0,42931.0,0.985188]
[1644689316249,0.01172098,42947.0,42939.0,0.3]
[1644689316548,0.95,42946.0,42942.0,0.25]
[1644689316750,0.95,42946.0,42935.0,0.25]
[1644689316751,0.326858,42945.0,42935.0,0.25]
[1644689316951,0.326858,42944.0,42935.0,0.25]
[1644689317401,0.0859024,42938.0,42935.0,0.25]
[1644689317604,0.326858,42937.0,42930.0,0.058238]
[1644689317801,0.0859024,42938.0,42930.0,0.058238]
[1644689317802,0.0859024,42938.0,42936.0,0.25]
[1644689318700,0.0859024,42938.0,42937.0,0.326858]
[1644689318902,0.0859024,42938.0,42936.0,0.25]
[1644689319102,0.95,42946.0,42937.0,0.326858]
[1644689319301,0.95,42946.0,42944.0,0.326858]
[1644689319602,0.95,42946.0,42937.0,0.25]
[1644689320001,0.20688262,42940.0,42937.0,0.25]
[1644689320203,0.20688262,42940.0,42939.0,0.058226]
[1644689320401,0.20688262,42940.0,42937.0,0.25]
[1644689320602,0.20688262,42940.0,42938.0,0.326858]
[1644689320802,0.20688262,42940.0,42937.0,0.25]
[1644689321043,0.20688262,42940.0,42938.0,0.326858]
[1644689321248,0.20188262,42940.0,42938.0,0.326858]
[1644689322247,0.95,42946.0,42937.0,0.308228]
[1644689322445,0.95,42946.0,42940.0,0.09834524]
[1644689322446,0.00055404,42941.0,42940.0,0.09834524]
[1644689322646,0.00055404,42941.0,42940.0,0.42520324]
[1644689323047,0.00055404,42941.0,42940.0,0.72520324]
[1644689323246,0.00055404,42941.0,42940.0,0.80305782]
[1644689323446,0.01172098,42947.0,42941.0,0.326858]
[1644689323646,0.01172098,42947.0,42941.0,0.321858]
[1644689323647,0.00018476,42943.0,42941.0,0.321858]
[1644689324247,0.00018476,42943.0,42940.0,0.13607358]
[1644689324248,0.00018476,42943.0,42942.0,0.72520324]
[1644689324448,0.00018476,42943.0,42942.0,0.39834524]
[1644689324803,0.00055456,42944.0,42942.0,0.39834524]
[1644689325595,0.00055456,42944.0,42942.0,0.34834524]
[1644689325797,0.07101767,42945.0,42942.0,0.34834524]
[1644689326196,0.00055455,42945.0,42944.0,0.326856]
[1644689326397,0.00055455,42945.0,42944.0,0.05]
[1644689326596,0.32741055,42945.0,42943.0,0.05]
[1644689326796,0.326856,42944.0,42943.0,0.05]
[1644689326995,0.326856,42944.0,42943.0,0.166429]
[1644689327496,0.00953827,42947.0,42943.0,0.166429]
[1644689327696,0.00953827,42947.0,42943.0,0.05]
[1644689327899,0.326856,42946.0,42943.0,0.05]
[1644689328966,0.00953826,42947.0,42943.0,0.05]
[1644689329265,0.326847,42946.0,42943.0,0.05]
[1644689329466,0.00898373,42947.0,42944.0,0.326847]
[1644689329766,0.00953827,42947.0,42943.0,0.05]
[1644689330665,0.00898373,42947.0,42943.0,0.05]
[1644689330865,0.00953826,42947.0,42943.0,0.05]
[1644689331264,0.00953826,42947.0,42943.0,0.1]
[1644689331865,0.00898373,42947.0,42943.0,0.05]
[1644689332165,0.00916794,42947.0,42943.0,0.05]
[1644689332601,0.00916794,42947.0,42944.0,0.05]
[1644689332799,0.00916794,42947.0,42943.0,0.05]
[1644689333001,0.00898373,42947.0,42943.0,0.05]
[1644689333199,0.00952733,42947.0,42943.0,0.05]
[1644689333399,0.00157946,42945.0,42944.0,0.326847]
[1644689333599,0.00157946,42945.0,42943.0,0.05]
[1644689334801,0.00157946,42945.0,42944.0,0.326847]
[1644689335001,0.00157946,42945.0,42943.0,0.05]
[1644689336049,0.00157946,42945.0,42944.0,0.14834524]
[1644689336648,0.19901722,42948.0,42944.0,0.14834524]
[1644689336849,0.00018475,42947.0,42944.0,0.14834524]
[1644689337049,0.00018475,42947.0,42943.0,0.3]
[1644689337852,0.19901722,42948.0,42943.0,0.3]
[1644689338051,0.00018475,42947.0,42943.0,0.3]
[1644689338655,0.24936143,42946.0,42943.0,0.3]
[1644689338956,0.326847,42945.0,42943.0,0.05]
[1644689339153,0.24936143,42946.0,42943.0,0.05]
[1644689339453,0.00018475,42947.0,42943.0,0.05]
[1644689339654,0.26591025,42947.0,42943.0,0.05]
[1644689339906,0.29793083,42947.0,42943.0,0.05]
[1644689340108,0.326847,42946.0,42943.0,0.05]
[1644689340305,0.326847,42944.0,42933.0,0.25]
[1644689340605,0.26158432,42943.0,42933.0,0.25]
[1644689341011,0.19950918,42935.0,42933.0,0.25]
[1644689341202,0.26576052,42935.0,42933.0,0.25]
[1644689341604,0.19950918,42935.0,42933.0,0.25]
[1644689342004,0.326847,42934.0,42927.0,0.34834524]
[1644689342402,0.19950918,42935.0,42927.0,0.34834524]
[1644689343204,0.19950918,42935.0,42927.0,0.34815757]
[1644689343405,0.0871287,42933.0,42927.0,0.34815757]
[1644689343654,0.0871287,42933.0,42927.0,0.25]
[1644689344051,0.0871287,42933.0,42925.0,0.058242]
[1644689344052,0.326847,42932.0,42925.0,0.058242]
[1644689344250,0.31701333,42931.0,42925.0,0.058242]
[1644689344650,0.22787252,42927.0,42925.0,0.058242]
[1644689345550,0.31701333,42931.0,42925.0,0.058242]
[1644689345751,0.31427608,42931.0,42925.0,0.058242]
[1644689345953,0.31427608,42931.0,42923.0,0.7562]
[1644689345954,0.326847,42930.0,42923.0,0.7562]
[1644689346152,0.326847,42930.0,42923.0,0.25]
[1644689346351,0.326847,42930.0,42921.0,0.058248]
[1644689346551,0.3274059,42930.0,42921.0,0.058248]
[1644689346753,0.3274059,42930.0,42919.0,0.25]
[1644689346754,0.3740059,42930.0,42919.0,0.25]
[1644689346953,0.64514228,42920.0,42919.0,0.25]
[1644689347397,0.326847,42920.0,42918.0,0.09815757]
[1644689348203,0.20806402,42927.0,42918.0,0.09815757]
[1644689348397,0.07635675,42924.0,42918.0,0.09815757]
[1644689349799,0.26068842,42923.0,42918.0,0.09815757]
[1644689349999,0.29185274,42923.0,42918.0,0.09815757]
[1644689350201,0.29185274,42923.0,42917.0,0.05037426]
[1644689350202,0.0466,42936.0,42924.0,0.09815757]
[1644689350404,0.7700063,42935.0,42924.0,0.14815757]
[1644689350800,0.3136063,42935.0,42924.0,0.14815757]
[1644689351048,0.26084641,42931.0,42924.0,0.14815757]
[1644689351251,0.0808327,42929.0,42924.0,0.14815757]
[1644689351449,0.326847,42928.0,42924.0,0.14815757]
[1644689351649,0.0808327,42929.0,42925.0,0.09815757]
[1644689351849,0.00018528,42932.0,42925.0,0.09815757]
[1644689352054,0.326847,42931.0,42927.0,0.05]
[1644689352250,0.326847,42937.0,42927.0,0.05]
[1644689352449,0.00018528,42929.0,42927.0,0.05]
[1644689352654,0.00018528,42929.0,42928.0,0.66707209]
[1644689352850,0.00074103,42936.0,42933.0,0.09815757]
[1644689353054,0.00074103,42936.0,42934.0,0.66845652]
[1644689353251,0.00074103,42936.0,42934.0,0.373447]
[1644689353450,0.132,42950.0,42935.0,0.376891]
[1644689353650,0.132,42950.0,42935.0,0.05]
[1644689353953,0.326891,42949.0,42934.0,0.0466]
[1644689354150,0.326891,42949.0,42931.0,0.09815757]
[1644689354999,0.19320393,42947.0,42937.0,0.09815757]
[1644689355195,0.06590897,42941.0,42937.0,0.09815757]
[1644689355396,0.326891,42940.0,42937.0,0.09815757]
[1644689356200,0.326891,42940.0,42934.0,0.058233]
[1644689356397,0.326891,42940.0,42930.0,0.461883]
[1644689356398,0.326891,42940.0,42930.0,0.345422]
[1644689356600,0.326891,42940.0,42927.0,0.116473]
[1644689356798,0.30607761,42941.0,42931.0,0.058237]
[1644689356997,0.30551761,42941.0,42931.0,0.058237]
[1644689357200,0.0660161,42934.0,42931.0,0.058237]
[1644689357698,0.0660161,42934.0,42931.0,0.15639457]
[1644689357898,0.326891,42936.0,42931.0,0.15639457]
[1644689358100,0.326895,42935.0,42931.0,0.15639457]
[1644689358398,0.326895,42936.0,42931.0,0.15639457]
[1644689358644,0.00056005,42935.0,42931.0,0.058237]
[1644689359250,0.00056005,42935.0,42934.0,0.09815757]
[1644689359546,0.326895,42936.0,42934.0,0.09815757]
[1644689359745,0.00056005,42935.0,42934.0,0.09815757]
[1644689360146,0.00223985,42942.0,42935.0,0.326891]
[1644689360448,0.00223985,42942.0,42941.0,0.82504857]
[1644689360645,0.003,42958.0,42945.0,0.116416]
[1644689360847,0.003,42958.0,42948.0,0.05]
[1644689361046,0.19514937,42955.0,42949.0,0.0466]
[1644689361251,0.0932,42946.0,42945.0,0.116416]
[1644689361745,0.0932,42946.0,42945.0,0.789907]
[1644689361949,0.0932,42946.0,42945.0,0.563016]
[1644689363702,0.09046275,42946.0,42945.0,0.563016]
[1644689364102,0.09046275,42946.0,42945.0,0.413016]
[1644689364402,0.09046275,42946.0,42945.0,0.213016]
[1644689364605,0.09046275,42946.0,42945.0,0.163016]
[1644689366347,0.09046275,42946.0,42945.0,0.138016]
[1644689366948,0.09046275,42946.0,42945.0,0.091416]
[1644689367346,0.09046275,42946.0,42945.0,0.418307]
[1644689367546,0.09046275,42946.0,42945.0,0.191416]
[1644689367746,0.09046275,42946.0,42945.0,0.618307]
[1644689368046,0.09046275,42946.0,42945.0,0.291416]
[1644689368447,0.08546275,42946.0,42945.0,0.291416]
[1644689369347,0.08516275,42946.0,42945.0,0.291416]
[1644689370007,0.08516275,42946.0,42945.0,0.618307]
[1644689370410,0.08516275,42946.0,42945.0,1.0196192]
[1644689370805,0.08516275,42946.0,42945.0,0.9032484]
[1644689371005,0.08516275,42946.0,42945.0,0.4763574]
[1644689371304,0.08516275,42946.0,42945.0,0.718307]
[1644689371706,0.08516275,42946.0,42945.0,0.5763574]
[1644689372004,0.00073979,42954.0,42949.0,0.91465228]
[1644689372206,0.00073979,42954.0,42952.0,0.29815757]
[1644689372408,0.00073979,42954.0,42952.0,0.49815757]
[1644689372808,0.003,42958.0,42952.0,0.49815757]
[1644689373005,0.003,42958.0,42952.0,0.49315757]
[1644689373206,0.06771354,42955.0,42952.0,0.49315757]
[1644689373407,0.326891,42954.0,42952.0,0.49315757]
[1644689374351,0.26514837,42953.0,42950.0,0.1849414]
[1644689374553,0.135968,42952.0,42949.0,0.91465228]
[1644689374752,0.135968,42952.0,42950.0,0.18494926]
[1644689374953,0.135968,42952.0,42949.0,0.91465228]
[1644689375151,0.130968,42952.0,42950.0,0.18494926]
[1644689375352,0.130968,42952.0,42949.0,0.91465228]
[1644689375954,0.130968,42952.0,42949.0,0.39788857]
[1644689376154,0.130968,42952.0,42949.0,0.21433228]
[1644689376155,0.130468,42952.0,42949.0,0.21433228]
[1644689376354,0.130468,42952.0,42941.0,0.18497089]
[1644689376355,1.567891,42950.0,42941.0,0.18497089]
[1644689376554,0.0466,42949.0,42937.0,0.05]
[1644689376753,0.130476,42948.0,42938.0,0.3097601]
[1644689376954,0.130476,42948.0,42934.0,0.09315757]
[1644689376955,0.326838,42943.0,42934.0,0.09315757]
[1644689377401,0.326838,42942.0,42934.0,0.09315757]
[1644689377605,0.3097601,42947.0,42940.0,0.09315757]
[1644689377800,0.13318428,42950.0,42942.0,0.05822]
[1644689378002,0.326838,42949.0,42942.0,0.05822]
[1644689378400,0.00018428,42950.0,42942.0,0.05822]
[1644689378700,0.24228197,42952.0,42940.0,0.09315757]
[1644689378899,0.00055987,42950.0,42940.0,0.09315757]
[1644689379701,0.130529,42945.0,42934.0,0.09315757]
[1644689379902,0.00055987,42950.0,42946.0,0.15]
[1644689379903,0.1343,42950.0,42946.0,0.15]
[1644689380104,0.00055987,42950.0,42947.0,0.09315757]
[1644689380501,0.130529,42949.0,42947.0,0.09315757]
[1644689380703,0.00055987,42950.0,42947.0,0.09315757]
[1644689381152,0.26168994,42955.0,42947.0,0.09315757]
[1644689381349,0.00018852,42951.0,42946.0,0.058214]
[1644689381951,0.00018852,42951.0,42947.0,0.09315757]